{"text_format":"1","workbook":"xlsx","n_sheets":2,"sheets":["Variabelliste - informasjon","Variabelliste - velg variabler"],"not_rendered":{"charts":0,"images":1,"macros":1,"external_links":0,"defined_names":1,"comments":0,"pivot_tables":0},"unopened":[],"bounds":{"document_bytes":16777216,"sheet_cells":100000,"rows_first":2000,"rows_last":500,"rows_between":2000,"halvings":0,"cell_chars":16384,"cell_head_chars":4096},"cells_cut":0,"cells_raw":0,"read":"whole","date_system":"1900"}

{"sheet":"Variabelliste - informasjon","index":0,"n_rows":36,"n_cols":5,"rows_kept":36,"cut":false,"hidden":false,"merged":[[32,1,32,2],[16,2,17,2],[18,2,19,2],[20,2,21,2],[22,2,23,2],[24,2,25,2],[24,3,25,4],[26,2,27,2],[26,3,27,4],[0,0,1,1],[28,2,29,2]]}
[null,null,"VARIABELLISTE - INFORMASJON"]
[null,null,"Inntekt, formue og skatt"]
[]
[]
[null,"Statistikkområde:","Inntekt og forbruk på ssb.no"]
[null,"Omfang:","Alle bosatte personer pr 31.12. i inntektsåret."]
[null,"Referanseperiode:","Inntektsåret"]
[null,"Enhet:","Person"]
[null,"Inntekt på husholdningsnivå:","Inntekt etter skatt kan leveres aggregert over husholdningen som personen tilhører. Husholdningsinntekten legges på hver enkelt person. Bestilles som egen variabel, se variabellista."]
[null,"Dispensasjon:","SSB er dispensasjonsgiver for alle variablene i denne listen. Søknaden om data (eget skjema) gjelder også som dispensasjonssøknad."]
[null,"Annen informasjon fra SSB:","Husholdningsdefinisjonen i data og statistikk om inntekt og formue avviker fra befolkningsstatistikkens definisjon.\n\nFor enkelte variabler er det endringer i definisjon i løpet av tidsserien. Data kan leveres med eller uten brudd."]
[]
[null,null,"NB!: Enkelte variabler er også tilgjengelig på microdata.no.  Denne tjenesten er åpen for forskere, PhD- og masterstudenter tilknyttet godkjente forskningsinstitusjoner: https://microdata.no/ "]
[]
[]
[null,"OPPGI INFORMASJON:"]
[null,"Dato for innsending av bestilling:",null,"*"]
[]
[null,"Prosjektnavn:",null,"*"]
[]
[null,"Institusjon:",null,"*"]
[]
[null,"Utfylt av:",null,"*"]
[]
[null,"SSB saksnummer:",null,"Oppgis hvis du har mottatt det fra SSB."]
[]
[null,"Angi om databestillingen inkluderer",null,"Nyere data kan foreligge på avtaletidspunktet."]
[null,"siste tilgjengelige årganger (Ja/Nei):"]
[null,"Evt. kommentarer til SSB:"]
[]
[null,null,"* Obligatoriske felt"]
[]
[null,"Gå til variabelliste og velg variabler"]
[]
[]
["Sist oppdatert 28. Februar 2020",null,null,null,"Statistisk sentralbyrå"]

{"sheet":"Variabelliste - velg variabler","index":1,"n_rows":88,"n_cols":26,"rows_kept":88,"cut":false,"hidden":false,"merged":[[4,17,5,17],[4,6,5,6],[0,0,1,0],[4,7,4,8],[4,2,4,3],[84,1,84,6],[4,0,5,0],[4,1,5,1],[4,4,5,4]]}
[null,"VARIABELLISTE - VELG VARIABLER"]
[null,{"$f":"'Variabelliste - informasjon'!C2","v":"Inntekt, formue og skatt"},null,null,null,{"$f":"IF(OR(B9=\"x\",B10=\"x\",B11=\"x\",B12=\"x\",B13=\"x\",B14=\"x\",B20=\"x\",B41=\"x\",B44=\"x\",B70=\"x\",B71=\"x\",B75=\"x\",B76=\"x\"),5,\"0\")","v":"0"},"x",{"$f":"F2","v":"0"}]
[]
[null,"filter, intern",null,null,null,null,null,null,null,null,"Intern informasjon"]
["Variabelbeskrivelse","Kryss (x) for bestilling:","Oppgi perioden du ønsker data for",null,"Tilgjengelige årganger",null,"Filter",null,null,null,null,null,null,null,null,null,null,"Registereier","RAIRD eksport"]
[null,null,"Fra år:","Til år:",null,"Finnes også  på microdata.no",null,"Definisjoner","Gjeldende\nkodelister",null,"Variabelnavn","KOMMENTARER RELEVANT FOR SAKSBEHANDLING","Filplassering","Filnavn","Alternativ kilde",null,null,null,"Datatype","Temporality","Emne","Regional dekning","Statistisk enhet","Spes/pop","Måleenhet","Kommentar"]
[]
["VARIABLER FRA INNTEKTS- OG FORMUESSTATISTIKK FOR HUSHOLDNINGER",null,null,null,null,null,{"$f":"IF(COUNTIF(G9:G45,\"x\")>0,\"x\",\"0\")","v":"0"},"Relevant statistikk",null,null,null,null,"$INNTREG/sbberedskap/wk48/","Inntekt_G1993Gåååå"]
["Løpenummer person",null,null,null,"1993-2018","microdata.no",{"$f":"B9","v":0},"definisjon",null,null,"wxx_xxxx_lopenr_person",null,null,"Inntekt_G1993Gåååå",null,null,null,"SSB","string","status",null,"Norge","Person"]
["Løpenummer husholdning",null,null,null,"2004-2018","microdata.no",{"$f":"B10","v":0},"definisjon",null,null,"wxx_xxxx_lopenr_hush",null,null,"Inntekt_G1993Gåååå",null,null,null,"SSB","string","status",null,"Norge","Husholdning"]
["Yrkesinntekter",null,null,null,"1993-2018","microdata.no",0,"definisjon","beløp",null,"wyrkinnt",null,null,"Inntekt_G1993Gåååå",null,null,null,"SSB","number","status","Inntekt og forbruk","Norge","Person",null,"NOK"]
["   Lønnsinntekter",null,null,null,"1993-2018","microdata.no",0,"definisjon","beløp",null,"wlonn",null,null,"Inntekt_G1993Gåååå",null,null,null,"SSB","number","status","Inntekt og forbruk","Norge","Person",null,"NOK"]
["   Netto næringsinntekter",null,null,null,"1993-2018","microdata.no",0,"definisjon","beløp",null,"wnarinnt",null,null,"Inntekt_G1993Gåååå",null,null,null,"SSB","number","status","Inntekt og forbruk","Norge","Person",null,"NOK"]
["Kapitalinntekter",null,null,null,"1993-2018","microdata.no",0,"definisjon","beløp",null,"wkapinnt",null,null,"Inntekt_G1993Gåååå",null,null,null,"SSB","number","status","Inntekt og forbruk","Norge","Person",null,"NOK"]
["Renteinntekter",null,null,null,"1993-2018",null,0,"definisjon","beløp",null,"rentinnt",null,null,"Inntekt_G1993Gåååå",null,null,null,"SSB","number","status","Inntekt og forbruk","Norge","Person",null,"NOK"]
["Aksjeutbytte",null,null,null,"1993-2018",null,0,"definisjon","beløp",null,"aksje",null,null,"Inntekt_G1993Gåååå",null,null,null,"SSB","number","status","Inntekt og forbruk","Norge","Person",null,"NOK"]
["Realisasjonsgevinster",null,null,null,"1993-2018",null,0,"definisjon","beløp",null,"gevinst",null,null,"Inntekt_G1993Gåååå",null,null,null,"SSB","number","status","Inntekt og forbruk","Norge","Person",null,"NOK"]
["Realisasjonstap",null,null,null,"1993-2018",null,0,"definisjon","beløp",null,"tap",null,null,"Inntekt_G1993Gåååå",null,null,null,"SSB","number","status","Inntekt og forbruk","Norge","Person",null,"NOK"]
["Andre kapitalinntekter",null,null,null,"1993-2018",null,0,"definisjon","beløp",null,"andrekap",null,null,"Inntekt_G1993Gåååå",null,null,null,"SSB","number","status","Inntekt og forbruk","Norge","Person",null,"NOK"]
["Overføringer",null,null,null,"1993-2018","microdata.no",0,"definisjon","beløp",null,"woverfor",null,null,"Inntekt_G1993Gåååå",null,null,null,"SSB","number","status","Inntekt og forbruk","Norge","Person",null,"NOK"]
["Skattepliktige overføringer",null,null,null,"1993-2018",null,0,"definisjon","beløp",null,"wskplovf",null,null,"Inntekt_G1993Gåååå",null,null,null,"SSB","number","status","Inntekt og forbruk","Norge","Person",null,"NOK"]
["Pensjoner fra folketrygden",null,null,null,"1993-2018",null,0,"definisjon","beløp",null,"ftryg",null,null,"Inntekt_G1993Gåååå",null,null,null,"SSB","number","status","Inntekt og forbruk","Norge","Person",null,"NOK"]
[" - Alderspensjoner",null,null,null,"1993-2018",null,0,"definisjon","beløp",null,"kode217",null,null,"Inntekt_G1993Gåååå",null,null,null,"NAV","number","status","Inntekt og forbruk","Norge","Person",null,"NOK"]
[" - Uførepensjon",null,null,null,"1993-2018",null,0,"definisjon","beløp",null,"kode218",null,null,"Inntekt_G1993Gåååå",null,null,null,"NAV","number","status","Inntekt og forbruk","Norge","Person",null,"NOK"]
[" - Arbeidsavklaringspenger",null,null,null,"2010-2018",null,0,"definisjon","beløp",null,"sum_arbavkl",null,null,"Inntekt_G1993Gåååå",null,null,null,"NAV","number","status","Inntekt og forbruk","Norge","Person",null,"NOK"]
["Tjenestepensjoner",null,null,null,"1993-2018",null,0,"definisjon","beløp",null,"wtjenpen",null,null,"Inntekt_G1993Gåååå",null,null,null,"SSB","number","status","Inntekt og forbruk","Norge","Person",null,"NOK"]
["Avtalefestet pensjon (AFP)",null,null,null,"2006-2010",null,0,"definisjon","beløp",null,"kode227","ny privat AFP skilt ut i egen kode 2011, 227 videreført",null,"Inntekt_G1993Gåååå",null,null,null,"SSB","number","status","Inntekt og forbruk","Norge","Person",null,"NOK"]
[" - AFP offentlig",null,null,null,"2011-2018",null,0,"definisjon","beløp",null,"kode227","ny privat AFP skilt ut i egen kode 2011, 227 videreført",null,"Inntekt_G1993Gåååå",null,null,null,"SSB","number","status","Inntekt og forbruk","Norge","Person",null,"NOK"]
[" - AFP privat",null,null,null,"2011-2018",null,0,"definisjon","beløp",null,"kode243","ny privat AFP skilt ut i egen kode 2011, som kode243",null,"Inntekt_G1993Gåååå",null,null,null,"SSB","number","status","Inntekt og forbruk","Norge","Person",null,"NOK"]
["Dagpenger ved arbeidsledighet",null,null,null,"1993-2018",null,0,"definisjon","beløp",null,"arbled",null,null,"Inntekt_G1993Gåååå",null,null,null,"SSB","number","status","Inntekt og forbruk","Norge","Person",null,"NOK"]
["Sykepenger",null,null,null,"2006-2018",null,0,"definisjon","beløp",null,"sykepenger",null,null,"Inntekt_G1993Gåååå",null,null,null,"NAV","number","status","Inntekt og forbruk","Norge","Person",null,"NOK"]
["Foreldrepenger",null,null,null,"2006-2018",null,0,"definisjon","beløp",null,"foreldrepenger",null,null,"Inntekt_G1993Gåååå",null,null,null,"NAV","number","status","Inntekt og forbruk","Norge","Person",null,"NOK"]
["Skattefrie overføringer",null,null,null,"1993-2018",null,0,"definisjon","beløp",null,"wskfrovf",null,null,"Inntekt_G1993Gåååå",null,null,null,"SSB","number","status","Inntekt og forbruk","Norge","Person",null,"NOK"]
["Barnetrygd",null,null,null,"1993-2018",null,0,"definisjon","beløp",null,"barntryg",null,null,"Inntekt_G1993Gåååå",null,null,null,"NAV","number","status","Inntekt og forbruk","Norge","Person",null,"NOK"]
["Bostøtte",null,null,null,"1993-2018",null,0,"definisjon","beløp",null,"bostott",null,null,"Inntekt_G1993Gåååå",null,null,null,"KRD","number","status","Inntekt og forbruk","Norge","Person",null,"NOK"]
["Studiestipend",null,null,null,"1993-2018",null,0,"definisjon","beløp",null,"stipend",null,null,"Inntekt_G1993Gåååå",null,null,null,"KD","number","status","Inntekt og forbruk","Norge","Person",null,"NOK"]
["Forsørgerfradrag",null,null,null,"1993-2000",null,0,"definisjon","beløp",null,"forsfrad",null,null,"Inntekt_G1993Gåååå",null,null,null,"SSB","number","status","Inntekt og forbruk","Norge","Person",null,"NOK"]
["Sosialhjelp",null,null,null,"1993-2018",null,0,"definisjon","beløp",null,"sosial",null,null,"Inntekt_G1993Gåååå",null,null,null,"NAV","number","status","Inntekt og forbruk","Norge","Person",null,"NOK"]
["Grunn- og hjelpestønad",null,null,null,"1993-2018",null,0,"definisjon","beløp",null,"grunnhj",null,null,"Inntekt_G1993Gåååå",null,null,null,"NAV","number","status","Inntekt og forbruk","Norge","Person",null,"NOK"]
["Kontantstøtte",null,null,null,"1998-2018",null,0,"definisjon","beløp",null,"konts",null,null,"Inntekt_G1993Gåååå",null,null,null,"NAV","number","status","Inntekt og forbruk","Norge","Person",null,"NOK"]
["Samlet inntekt",null,null,null,"1993-2018","microdata.no",0,"definisjon","beløp",null,"wsaminnt",null,null,"Inntekt_G1993Gåååå",null,null,null,"SSB","number","status","Inntekt og forbruk","Norge","Person",null,"NOK"]
["Utlignet skatt og negative overføringer",null,null,null,"1993-2018",null,0,"definisjon","beløp",null,"wskatovf",null,null,"Inntekt_G1993Gåååå",null,null,null,"SSB","number","status","Inntekt og forbruk","Norge","Person",null,"NOK"]
["Utlignet skatt (beløp avrundes til hele 1 000 kr)",null,null,null,"1993-2018",null,0,"definisjon","beløp",null,"utskatt","Avrunder beløpet fordi det kan gjenfinnes offentlig.",null,"Inntekt_G1993Gåååå",null,null,null,"SSB","number","status","Inntekt og forbruk","Norge","Person",null,"NOK"]
["Inntekt etter skatt",null,null,null,"1993-2018","microdata.no",0,"definisjon","beløp",null,"wies",null,null,"Inntekt_G1993Gåååå",null,null,null,"SSB","number","status","Inntekt og forbruk","Norge","Person",null,"NOK"]
["Renteutgifter",null,null,null,"1993-2018",null,0,"definisjon","beløp",null,"rentut",null,null,"Inntekt_G1993Gåååå",null,null,null,"SSB","number","status","Inntekt og forbruk","Norge","Person",null,"NOK"]
[]
[]
["SYKEPENGER FLYTTET FRA YRKESINNTEKTER TIL OVERFØRINGER (OFFISIELL STATISTIKK F.O.M. 2006)",null,null,null,null,null,{"$f":"IF(COUNTIF(G49:G54,\"x\")>0,\"x\",\"0\")","v":"0"},null,null,null,null,null,"$INNTREG/sbberedskap/wk48/","Inntekt_G1993Gåååå"]
["Yrkesinntekter",null,null,null,"2006-2018",null,{"$f":"B49","v":0},"definisjon","beløp",null,"yrkinnt",null,null,"Inntekt_G1993Gåååå",null,null,null,"SSB","number","status","Inntekt og forbruk","Norge","Person",null,"NOK"]
["Lønnsinntekter",null,null,null,"2006-2018",null,0,"definisjon","beløp",null,"lonn",null,null,"Inntekt_G1993Gåååå",null,null,null,"SSB","number","status","Inntekt og forbruk","Norge","Person",null,"NOK"]
["Netto næringsinntekter",null,null,null,"2006-2018",null,0,"definisjon","beløp",null,"narinnt",null,null,"Inntekt_G1993Gåååå",null,null,null,"SSB","number","status","Inntekt og forbruk","Norge","Person",null,"NOK"]
["Overføringer",null,null,null,"2006-2018",null,0,"definisjon","beløp",null,"overfor",null,null,"Inntekt_G1993Gåååå",null,null,null,"SSB","number","status","Inntekt og forbruk","Norge","Person",null,"NOK"]
["Skattepliktige overføringer",null,null,null,"2006-2018",null,0,"definisjon","beløp",null,"skplovf",null,null,"Inntekt_G1993Gåååå",null,null,null,"SSB","number","status","Inntekt og forbruk","Norge","Person",null,"NOK"]
["Tjenestepensjoner",null,null,null,"2006-2018",null,0,"definisjon","beløp",null,"tjenpen",null,null,"Inntekt_G1993Gåååå",null,null,null,"SSB","number","status","Inntekt og forbruk","Norge","Person",null,"NOK"]
[]
[]
["BEREGNET MARKEDSVERDI AV BOLIG (OFFISIELL STATISTIKK F.O.M. 2010)",null,null,null,null,null,{"$f":"IF(COUNTIF(G58:G61,\"x\")>0,\"x\",\"0\")","v":"0"},null,null,null,null,null,"$INNTREG/sbberedskap/wk48/","Inntekt_G1993Gåååå"]
["Beregnet realkapital",null,null,null,"2010-2018",null,{"$f":"B58","v":0},"definisjon","beløp",null,"ber_realkap",null,null,"Inntekt_G1993Gåååå",null,null,null,"SSB","number","status","Inntekt og forbruk","Norge","Person",null,"NOK"]
["Beregnet markedsverdi av primærbolig",null,null,null,"2010-2018",null,0,"definisjon","beløp",null,"prim_mark",null,null,"Inntekt_G1993Gåååå",null,null,null,"SSB","number","status","Inntekt og forbruk","Norge","Person",null,"NOK"]
["Beregnet markedsverdi av sekundærbolig",null,null,null,"2010-2018",null,0,"definisjon","beløp",null,"sek_mark",null,null,"Inntekt_G1993Gåååå",null,null,null,"SSB","number","status","Inntekt og forbruk","Norge","Person",null,"NOK"]
["Beregnet bruttoformue",null,null,null,"2010-2018",null,0,"definisjon","beløp",null,"ber_brform",null,null,"Inntekt_G1993Gåååå",null,null,null,"SSB","number","status","Inntekt og forbruk","Norge","Person",null,"NOK"]
[]
[]
["HUSHOLDNINGSINNTEKT",null,null,null,null,null,{"$f":"IF(COUNTIF(G65:G66,\"x\")>0,\"x\",\"0\")","v":"0"},"Relevant statistikk",null,null,null,null,"$INNTREG/sbberedskap/wk48/","HUSH_IES_G2004Gåååå"]
["Inntekt etter skatt",null,null,null,"2004-2018",null,{"$f":"B65","v":0},"definisjon","beløp",null,"hush_ies",null,null,"HUSH_IES_G2004Gåååå",null,null,null,"SSB","number","status","Inntekt og forbruk","Norge","Person",null,"NOK"]
["Inntekt etter skatt per forbruksenhet (EU-skala)",null,null,null,"2004-2018",null,0,"definisjon","beløp",null,"ies_eu",null,null,"HUSH_IES_G2004Gåååå",null,null,null,"SSB","number","status","Inntekt og forbruk","Norge","Person",null,"NOK"]
[]
[]
["VARIABLER FRA SKATTESTATISTIKK FOR PERSONER",null,null,null,null,null,{"$f":"IF(COUNTIF(G70:G77,\"x\")>0,\"x\",\"0\")","v":"0"},"Relevant statistikk",null,null,null,null,"$INNTREG/sbberedskap/wk48/"]
["Løpenummer person",null,null,null,"1967-2018","microdata.no",{"$f":"B70","v":0},"definisjon",null,null,"wxx_xxxx_lopenr_person",null,null,"Pinnt_G1967GÅÅÅÅ",null,null,null,"SSB","number","status","Inntekt og forbruk","Norge","Person",null,"NOK"]
["Pensjonsgivende inntekt",null,null,null,"1967-2018","microdata.no",0,"definisjon","beløp",null,"pgivinnt",null,null,"Pinnt_G1967GÅÅÅÅ",null,null,null,"SSB","number","status","Inntekt og forbruk","Norge","Person",null,"NOK"]
["Skattepliktig realkapital",null,null,null,"1993-2018",null,0,"definisjon","beløp",null,"REAL",null,null,"Inntekt_G1993Gåååå",null,null,null,"SSB","number","status","Inntekt og forbruk","Norge","Person",null,"NOK"]
["Skattepliktig bruttofinanskapital",null,null,null,"1993-2018",null,0,"definisjon","beløp",null,"bruttofin",null,null,"Inntekt_G1993Gåååå",null,null,null,"SSB","number","status","Inntekt og forbruk","Norge","Person",null,"NOK"]
["Bankinnskudd",null,null,null,"1993-2018",null,0,"definisjon","beløp",null,"bankinnsk",null,null,"Inntekt_G1993Gåååå",null,null,null,"SSB","number","status","Inntekt og forbruk","Norge","Person",null,"NOK"]
["Skattepliktig bruttoformue (beløp avrundes til hele 1 000 kr)",null,null,null,"1993-2018","microdata.no",0,"definisjon","beløp",null,"bruttoform","Avrunder fordi netto formue kan fremkomme offentlig.",null,"Inntekt_G1993Gåååå",null,null,null,"SSB","number","status","Inntekt og forbruk","Norge","Person",null,"NOK"]
["Gjeld (beløp avrundes til hele 1 000 kr)",null,null,null,"1993-2018","microdata.no",0,"definisjon","beløp",null,"GJELD","Avrunder fordi netto formue kan fremkomme offentlig.",null,"Inntekt_G1993Gåååå",null,null,null,"SSB","number","status","Inntekt og forbruk","Norge","Person",null,"NOK"]
["Formuesskatt",null,null,null,"1993-2018",null,0,"definisjon","beløp",null,"formueskatt",null,null,"Inntekt_G1993Gåååå",null,null,null,"SSB","number","status","Inntekt og forbruk","Norge","Person",null,"NOK"]
[]
[]
["ANDRE TILGJENGELIGE VARIABLER",null,null,null,null,null,{"$f":"IF(COUNTIF(G81:G83,\"x\")>0,\"x\",\"0\")","v":"0"},null,null,null,null,null,"$INNTREG/sbberedskap/wk48/"]
["Kjønn",null,null,null,"1993-2018",null,{"$f":"B81","v":0},"definisjon","kodeliste",null,"kjonn","Tilbud om å krysse her er for kunde, om kun inntekt bestilles","hent fra befolkningsfil","Inntekt_G1993Gåååå",null,null,null,"SSB","string","status","Befolkning","Norge","Person",null,"N/A"]
["Alder pr. 31.12.",null,null,null,"1993-2018",null,0,"definisjon",null,null,"alder","Tilbud om å krysse her er for kunde, om kun inntekt bestilles","hent fra befolkningsfil","Inntekt_G1993Gåååå",null,null,null,"SSB","string","status","Befolkning","Norge","Person",null,"år"]
["Husholdningstype",null,null,null,"2004-2018",null,0,"definisjon","kodeliste",null,"regstat_hushtyp",null,"$INNTREG/sbberedskap/wk48/","HUSH_IES_G2004Gåååå","Inntekt_1993_åååå_detaljert",null,null,"SSB","string","status","befolkning","Norge","Person",null,"N/A"]
[]
[null,"Gå tilbake til informasjonssiden"]
[]
[]
[{"$f":"'Variabelliste - informasjon'!A36","v":"Sist oppdatert 28. Februar 2020"},null,null,null,null,null,null,null,null,null,"Statistisk sentralbyrå"]